bitfinex/quotes_ETHUSD_20240530
["timestamp","ask_amount","ask_price","bid_price","bid_amount"]
[1717076445091,5.70561766,3769.8,3768.8,7.33]
[1717076445290,2.65286,3769.6,3768.8,7.33]
[1717076445791,2.65295,3769.4,3768.8,7.33]
[1717076447334,2.65308,3769.2,3768.8,7.33]
[1717076447894,0.55,3769.1,3768.8,7.33]
[1717076448320,2.65322,3769.0,3768.8,7.33]
[1717076448509,2.65322,3769.0,3768.1,7.33]
[1717076448838,2.65322,3769.0,3768.1,8.328395]
[1717076449137,2.65322,3769.0,3768.2,0.09166974]
[1717076449775,4.58222,3769.0,3768.2,0.09166974]
[1717076450446,2.65342,3768.8,3768.2,0.09166974]
[1717076450668,0.55,3768.7,3768.2,0.09166974]
[1717076450932,2.65351,3768.6,3768.2,0.09166974]
[1717076453258,0.55,3768.7,3768.2,0.09166974]
[1717076453259,1.29789222,3768.5,3768.2,0.09166974]
[1717076453415,3.26999052,3768.4,3768.2,0.09166974]
[1717076453619,3.26999052,3768.4,3767.5,7.33]
[1717076453801,3.26999052,3768.4,3768.3,0.09186968]
[1717076454152,3.26999052,3768.4,3767.5,7.33]
[1717076454459,3.26999052,3768.4,3767.6,0.09214472]
[1717076454598,3.20364,3768.4,3767.6,0.09214472]
[1717076454996,2.6539,3768.1,3767.6,0.09214472]
[1717076455309,2.65401,3767.9,3767.6,0.09214472]
[1717076458543,2.65401,3767.9,3767.7,0.09210777]
[1717076458746,2.65401,3767.9,3767.3,0.41598451]
[1717076458747,2.65417,3767.7,3767.3,0.41598451]
[1717076458947,0.61636383,3767.6,3767.4,0.09222566]
[1717076459159,0.55,3767.6,3767.4,0.09222566]
[1717076459300,3.95217222,3767.5,3767.4,0.09222566]
[1717076459647,7.50217222,3767.5,3767.0,0.41607014]
[1717076459855,1.929,3767.1,3767.0,0.41607014]
[1717076460149,2.65477,3766.9,3765.5,2.65566]
[1717076460356,3.22689222,3767.1,3765.6,0.520606]
[1717076460357,2.65494,3766.6,3765.6,0.520606]
[1717076460509,2.65507,3766.4,3765.6,0.520606]
[1717076460910,0.55,3766.3,3765.4,2.5504]
[1717076461548,2.65507,3766.4,3765.5,0.05310858]
[1717076461743,1.929,3766.7,3765.4,5.20612]
[1717076461944,2.65452,3767.2,3765.9,2.65537]
[1717076462170,2.65452,3767.2,3766.2,2.5051]
[1717076462464,2.65452,3767.2,3766.3,2.65511]
[1717076462616,2.65423,3767.6,3766.2,2.5051]
[1717076462822,3.0,3767.5,3766.6,2.65488]
[1717076463348,2.65436,3767.4,3766.6,2.65488]
[1717076463664,3.95225222,3767.4,3766.2,5.16025]
[1717076463875,3.95225222,3767.4,3766.2,5.7028287]
[1717076464045,3.95225222,3767.4,3766.3,0.09377269]
[1717076464761,2.65453,3767.2,3766.3,0.09377269]
[1717076464957,0.55,3767.1,3766.3,0.09377269]
[1717076466368,2.65463,3767.0,3766.3,0.09377269]
[1717076466584,0.55,3766.9,3766.3,0.09377269]
[1717076466756,2.65477,3766.8,3766.3,0.09377269]
[1717076467083,2.65477,3766.8,3765.9,7.33]
[1717076467256,2.65477,3766.8,3766.4,0.09378503]
[1717076467584,2.65477,3766.8,3766.5,0.09374571]
[1717076467790,2.65453,3767.2,3766.5,0.09374571]
[1717076468078,0.55,3767.1,3766.1,2.65521]
[1717076468280,0.55,3767.1,3765.9,7.33]
[1717076468281,0.55,3767.1,3766.6,0.09368056]
[1717076468597,2.65368,3768.4,3766.2,1.1231865]
[1717076468598,2.65424,3767.6,3766.7,2.74848533]
[1717076468745,0.55,3767.5,3766.8,2.5572]
[1717076468943,0.55,3767.5,3766.9,0.093572]
[1717076470046,2.65439,3767.4,3766.3,5.18007]
[1717076470247,0.55,3767.3,3767.0,0.09353269]
[1717076470444,0.55,3767.3,3766.3,5.18007]
[1717076470743,0.55,3767.3,3766.3,5.698077]
[1717076471062,0.55,3767.3,3766.5,2.65497]
[1717076471385,0.55,3767.3,3766.6,0.09359367]
[1717076471941,4.58353,3767.2,3766.6,0.09359367]
[1717076472148,2.65463,3767.0,3766.1,2.65523]
[1717076472377,2.65463,3767.0,3766.2,0.09385428]
[1717076472851,0.55,3766.9,3766.2,0.09385428]
[1717076473561,5.88166222,3766.8,3766.2,0.09385428]
[1717076473780,5.88166222,3766.8,3765.9,7.33]
[1717076473781,2.65504,3766.5,3765.9,7.33]
[1717076473977,2.65514,3766.3,3765.9,7.33]
[1717076474192,0.55,3766.2,3765.5,0.41607729]
[1717076475312,2.65487,3766.7,3765.6,1.04018873]
[1717076475477,3.55,3766.6,3765.6,3.69575873]
[1717076476184,2.5102,3767.5,3765.9,2.65537]
[1717076476185,2.65459,3767.1,3765.9,2.65537]
[1717076476384,2.6543,3767.5,3766.1,2.65524]
[1717076476633,3.95219222,3767.5,3766.1,2.65524]
[1717076476960,3.95219222,3767.5,3766.3,2.65509]
[1717076477461,2.6543,3767.5,3766.6,2.6549]
[1717076478508,1.929,3767.7,3766.6,2.6549]
[1717076478710,2.65399,3767.9,3766.9,2.65464]
[1717076478905,2.65372,3768.3,3767.0,2.4902]
[1717076479092,1.29789222,3768.2,3767.1,0.514484]
[1717076479287,1.29789222,3768.2,3767.2,0.09047323]
[1717076480007,2.65386,3768.1,3767.2,0.09047323]
[1717076480411,1.929,3768.4,3767.3,2.65441]
[1717076480941,2.654,3767.9,3767.4,0.09019038]
[1717076481094,2.654,3767.9,3767.1,0.514484]
[1717076481433,2.654,3767.9,3767.2,0.09026899]
[1717076483612,5.4939,3768.6,3767.2,0.09026899]
[1717076483613,1.929,3767.6,3767.2,0.09026899]
[1717076483828,0.55,3767.5,3767.2,0.09026899]
[1717076484023,0.55,3767.5,3766.7,7.33]
[1717076484554,0.55,3767.5,3766.8,0.08721056]
[1717076484761,0.55,3767.5,3766.8,3.48370162]
[1717076484918,0.55,3767.7,3766.8,3.48370162]
[1717076487545,1.929,3768.2,3767.1,2.65455]
[1717076487546,4.58282,3768.2,3767.1,2.65455]
[1717076487860,2.65393,3768.0,3767.3,2.65442]
[1717076488063,0.55,3767.9,3767.3,2.65442]
[1717076488230,0.55,3767.9,3767.4,0.08697471]
[1717076488797,0.55,3767.9,3766.9,2.65464]
[1717076488964,0.55,3767.9,3767.5,0.08693541]
[1717076489262,0.55,3767.9,3767.0,1.07263611]
[1717076489263,0.55,3767.9,3767.2,2.65448]
[1717076489460,0.55,3767.9,3767.6,0.08689611]
[1717076489662,0.55,3767.9,3767.2,2.65448]
[1717076490167,0.55,3767.9,3767.3,0.08701401]
[1717076491279,2.65371,3768.4,3767.4,2.65433]
[1717076491467,1.12418326,3768.3,3767.4,2.65433]
[1717076491675,1.12418326,3768.3,3767.5,0.08693541]
[1717076491954,2.5999,3769.1,3767.5,0.08693541]
[1717076491955,2.65333,3768.9,3767.5,0.08693541]
[1717076492173,2.65343,3768.7,3767.9,2.65398]
[1717076492374,0.57415374,3768.6,3768.0,0.08667555]
[1717076492572,2.65343,3768.7,3768.0,0.08667555]
[1717076492771,1.29789222,3769.0,3768.0,0.3607411]
[1717076492973,0.57409089,3769.0,3768.1,2.65384]
[1717076493178,0.57409089,3769.0,3768.3,2.65365]
[1717076493381,2.65321,3769.1,3768.4,0.08631892]
[1717076494979,7.58191,3769.5,3768.4,0.08631892]
[1717076495183,1.84789222,3769.4,3768.4,0.08631892]
[1717076495484,1.84789222,3769.4,3768.5,2.65354]
[1717076495485,0.55,3769.4,3768.5,2.65354]
[1717076495794,0.55,3769.4,3768.6,0.08613946]
[1717076496002,2.65291,3769.5,3768.7,2.65342]
[1717076496441,2.65291,3769.5,3768.8,0.08606091]
[1717076497237,5.65262,3769.9,3768.8,0.08606091]
[1717076497478,2.65273,3769.7,3768.8,0.08606091]
[1717076497678,2.65289,3769.5,3768.8,0.08606091]
[1717076501090,2.479,3769.8,3768.8,0.08606091]
[1717076501254,4.84789222,3769.8,3768.9,1.00694809]
[1717076501650,4.84789222,3769.8,3769.0,0.08598237]
[1717076502712,2.65276,3769.7,3769.0,0.08598237]
[1717076503183,2.65276,3769.7,3769.1,0.0859431]
[1717076503389,2.65276,3769.7,3768.7,2.65342]
[1717076503589,2.65276,3769.7,3768.8,1.08440291]
[1717076504249,2.65276,3769.7,3768.8,0.08606091]
[1717076504762,2.65287,3769.5,3768.8,0.08606091]
[1717076505695,0.55,3769.4,3768.8,0.08606091]
[1717076505993,0.55,3769.4,3768.3,15.01366]
[1717076505994,1.929,3769.0,3768.3,12.36]
[1717076506166,1.929,3768.5,3767.7,7.33]
[1717076506352,1.29789222,3768.4,3767.8,0.0862121]
[1717076506552,0.55,3768.3,3767.8,0.0862121]
[1717076506758,0.55,3768.3,3767.7,7.33]
[1717076506986,3.20371,3768.3,3767.8,0.0862121]
[1717076507158,3.20371,3768.3,3767.7,7.33]
[1717076507359,3.20371,3768.3,3767.8,0.0862121]
[1717076507922,3.20371,3768.3,3767.7,7.33]
[1717076508129,3.20371,3768.3,3767.9,0.08617281]
[1717076508291,3.20371,3768.3,3767.8,0.0862121]
[1717076508468,3.20371,3768.3,3768.0,0.08613352]
[1717076508678,3.20371,3768.3,3767.9,0.08617281]
[1717076508916,3.20371,3768.3,3768.1,0.08609423]
[1717076509115,4.29789222,3768.2,3768.1,0.08609423]
[1717076509275,4.84789222,3768.2,3767.2,7.33]
[1717076509471,2.65417,3767.7,3767.2,7.33]
[1717076509713,2.65417,3767.7,3767.3,0.0864086]
[1717076510214,2.65417,3767.7,3767.4,0.0863693]
[1717076510575,2.65417,3767.7,3767.2,7.33]
[1717076510892,2.65417,3767.7,3767.3,0.0864086]
[1717076511073,2.65383,3768.2,3767.3,0.0864086]
[1717076511276,3.55,3768.1,3767.2,7.33]
[1717076511471,2.65392,3768.0,3767.4,0.0863693]
[1717076511718,2.65392,3768.0,3767.3,0.40384013]
[1717076511918,2.65392,3768.0,3767.5,0.08633]
[1717076512221,2.65392,3768.0,3767.6,0.0862907]
[1717076512681,2.65392,3768.0,3767.3,0.31743153]
[1717076513318,2.65392,3768.0,3767.4,0.08662977]
[1717076514691,4.58267,3768.4,3767.4,0.8600359]
[1717076514879,0.55,3768.3,3767.4,0.8600359]
[1717076515088,0.55,3768.3,3767.5,2.4979]
[1717076515487,0.55,3768.3,3767.6,0.08684916]
[1717076515722,2.65367,3768.4,3767.6,2.74102916]
[1717076515925,2.65367,3768.4,3767.7,0.60123353]
[1717076516291,2.65367,3768.4,3767.8,0.08665322]
[1717076517692,5.65342,3768.8,3767.8,0.08665322]
[1717076518032,0.55,3768.7,3767.8,0.08665322]
[1717076518247,2.65342,3768.8,3768.0,2.65389]
[1717076518535,2.65342,3768.8,3768.1,0.27405432]
[1717076518704,2.65342,3768.8,3768.1,0.3606061]
[1717076520743,2.65358,3768.5,3768.1,0.08655178]
[1717076521106,2.65289,3769.5,3767.7,0.60123353]
[1717076521107,2.65374,3768.3,3767.7,0.60123353]
[1717076521308,2.65374,3768.3,3768.2,0.08642332]
[1717076521511,4.58302153,3768.3,3767.6,7.33]
[1717076521824,1.29789222,3769.4,3767.6,8.62789222]
[1717076521995,2.65321,3769.1,3768.1,2.65384]
[1717076522200,2.50317838,3769.0,3768.1,2.65384]
[1717076522425,1.92906435,3768.9,3768.2,0.08642332]
[1717076522630,1.92906435,3768.8,3768.2,0.08642332]
[1717076522810,1.92906435,3768.7,3768.2,0.08642332]
[1717076523013,2.65321,3769.1,3768.3,0.27402633]
[1717076523210,2.65329,3768.9,3768.4,0.08639403]
[1717076523427,1.92893467,3768.8,3768.3,0.27402633]
[1717076523811,2.65329,3768.9,3768.3,0.27402633]
[1717076524014,2.65329,3768.9,3767.7,3.84401984]
[1717076524242,0.55,3768.8,3767.7,3.84401984]
[1717076524412,0.55,3768.8,3767.8,0.08662976]
[1717076524413,2.65344,3768.7,3767.8,0.08662976]
[1717076525940,2.65344,3768.7,3767.9,2.65395]
[1717076526139,2.6532,3769.1,3768.2,2.65378]
[1717076526398,1.92892129,3769.0,3768.3,0.265378]
[1717076526546,1.92892129,3769.0,3768.3,0.35181131]
[1717076527108,2.65329,3768.9,3768.3,0.35181131]
[1717076527450,2.65347,3768.7,3768.3,0.08643331]
[1717076527948,2.65347,3768.7,3767.8,2.65406]
[1717076528151,0.55,3768.6,3768.4,0.0861617]
[1717076528358,1.92897273,3768.5,3767.6,7.33]
[1717076528527,2.65375,3768.3,3767.7,2.56155861]
[1717076528726,1.92897273,3768.2,3767.7,2.64793667]
[1717076529907,2.65375,3768.3,3767.7,2.64793667]
[1717076530313,1.92914654,3768.2,3767.7,2.64793667]
[1717076530525,2.65375,3768.3,3767.7,2.64793667]
[1717076530730,2.65375,3768.3,3767.8,2.48358367]
[1717076531256,2.65375,3768.3,3767.9,0.08629947]
[1717076531629,2.65375,3768.3,3767.6,7.33]
[1717076531830,2.65375,3768.3,3768.0,0.08626018]
[1717076532056,2.65375,3768.3,3767.6,7.33]
[1717076532245,2.65375,3768.3,3768.1,0.08622089]
[1717076532440,2.65387,3768.1,3767.6,7.33]
[1717076532627,2.65387,3768.1,3767.6,9.89155861]
[1717076534367,2.65363,3768.5,3767.6,2.56155861]
[1717076534665,1.12416873,3768.4,3767.5,2.4979]
[1717076534864,0.57416873,3768.4,3767.8,2.65399]
[1717076535068,0.57412052,3768.8,3768.0,2.65389]
[1717076535962,2.65367,3768.4,3767.9,0.265399]
[1717076537670,2.65367,3768.4,3767.6,2.65417]
[1717076537864,0.64052225,3768.3,3767.5,2.4979]
[1717076538327,0.64052225,3768.3,3767.4,0.77340613]
[1717076538328,0.06634775,3768.2,3767.4,0.77340613]
[1717076538523,3.20386,3768.1,3767.2,2.65443]
[1717076538740,0.5741745,3768.0,3767.2,2.65443]
[1717076539156,0.5741745,3768.0,3767.3,0.08670423]
[1717076539662,3.20386,3768.1,3767.3,0.08670423]
[1717076539964,0.57419253,3768.0,3767.3,0.08670423]
[1717076540162,0.57419253,3768.0,3767.4,1.00711342]
[1717076540553,0.57419253,3768.0,3767.5,0.08662562]
[1717076540962,2.65408,3767.8,3767.5,0.08662562]
[1717076541266,2.65408,3767.8,3767.6,0.08658632]
[1717076541473,2.65408,3767.8,3767.1,7.33]
[1717076541474,0.57422816,3767.7,3767.1,7.33]
[1717076542261,0.55,3767.9,3767.1,9.98451]
[1717076542573,2.65396,3768.0,3767.2,0.998451]
[1717076542772,1.12423134,3767.9,3767.2,0.998451]
[1717076542988,2.65407,3767.8,3767.2,0.998451]
[1717076543128,2.65422,3767.6,3767.1,7.33]
[1717076543333,0.57427965,3767.5,3767.1,7.33]
[1717076543569,0.64063973,3767.5,3767.1,7.33]
[1717076543879,3.20435,3767.4,3767.1,7.33]
[1717076544336,0.57431447,3767.3,3767.1,7.33]
[1717076544676,0.57431447,3767.3,3766.4,7.33]
[1717076544874,0.57431447,3767.3,3766.5,1.0400975]
[1717076545076,0.06636747,3767.2,3766.5,1.0400975]
[1717076545310,0.57431447,3767.3,3766.5,1.0400975]
[1717076545479,2.72088725,3767.2,3766.5,1.0400975]
[1717076545665,2.72088725,3767.2,3766.4,7.33]
[1717076545666,1.1243425,3767.1,3766.4,7.33]
[1717076546370,0.55,3767.1,3766.4,7.33]
[1717076546914,1.12434405,3767.1,3766.4,7.33]
[1717076547272,0.55,3767.1,3766.4,7.33]
[1717076548809,0.55,3767.1,3766.3,0.41590502]
[1717076549011,2.65464,3767.0,3766.4,0.5709525]
[1717076549308,0.55,3766.9,3766.4,0.5709525]
[1717076549706,0.55,3766.9,3766.3,0.41590502]
[1717076549911,0.55,3766.9,3766.0,7.33]
[1717076552596,0.55,3766.9,3766.1,2.65526]
[1717076553218,2.65464,3767.0,3766.1,2.65526]
[1717076554130,2.65464,3767.0,3766.2,0.08482017]
[1717076554301,2.65464,3767.0,3766.3,1.00700802]
[1717076554631,2.65464,3767.0,3766.3,1.09178886]
[1717076554829,2.5997,3767.8,3766.3,1.09178886]
[1717076554830,1.929,3767.5,3766.3,1.09178886]
[1717076554980,0.57436513,3767.4,3766.7,2.65482]
[1717076555186,0.57436513,3767.7,3766.9,2.65465]
[1717076555380,2.6541,3767.8,3767.0,0.265465]
[1717076555625,2.65373,3768.3,3767.3,2.5826]
[1717076556135,2.65373,3768.3,3767.4,0.0843296]
[1717076557284,2.65373,3768.3,3767.5,2.65427]
[1717076557748,2.65373,3768.3,3767.6,0.08407492]
[1717076558044,2.65347,3768.7,3767.7,2.65409]
[1717076558384,2.65347,3768.7,3767.6,0.61616941]
[1717076558385,2.65347,3768.7,3767.9,2.65398]
[1717076558584,2.65318,3769.1,3767.9,2.65398]
[1717076558831,0.57409285,3769.0,3768.0,0.08386141]
[1717076559025,2.65318,3769.1,3768.2,2.65378]
[1717076559329,2.65318,3769.1,3768.3,0.08365671]
[1717076560325,2.65318,3769.1,3768.3,0.13672618]
[1717076560638,2.65288,3769.5,3768.4,2.65364]
[1717076560792,0.57405086,3769.4,3768.5,0.61798849]
[1717076560988,2.65288,3769.5,3768.6,2.65344]
[1717076561389,2.65259,3769.9,3768.8,2.6533]
[1717076561606,2.65259,3769.9,3768.7,0.08322027]
[1717076561806,2.65231,3770.3,3769.1,2.6096]
[1717076562234,2.65231,3770.3,3769.2,0.08290191]
[1717076562909,2.65231,3770.3,3769.2,2.73597191]
[1717076564752,0.55,3770.2,3769.2,2.73597191]
[1717076567145,2.65202,3770.7,3769.5,2.6528]
[1717076567487,2.6554,3772.0,3769.8,2.6526]
[1717076567488,3.94964222,3771.1,3769.8,2.6526]
[1717076567833,4.58048,3771.5,3770.0,2.65249]
[1717076568036,3.94937222,3771.5,3770.2,2.65231]
[1717076568550,5.87837222,3771.5,3770.3,0.08223325]
[1717076569274,4.58048,3771.5,3770.3,0.08223325]
[1717076569591,2.65148,3771.5,3770.4,2.65222]
[1717076569734,2.65148,3771.5,3770.5,0.27344532]
[1717076569939,2.65148,3771.5,3770.5,0.35499742]
[1717076571884,2.6554,3772.0,3770.5,0.0815521]
[1717076571885,2.65161,3771.3,3770.5,0.0815521]
[1717076572092,0.61630101,3771.2,3770.5,0.0815521]
[1717076572237,0.61630101,3771.2,3770.0,5.2792]
[1717076572238,0.55,3771.2,3770.0,5.2792]
[1717076572635,0.55,3771.2,3770.2,2.65234]
[1717076572844,2.65161,3771.3,3770.2,2.65234]
[1717076573044,2.65161,3771.3,3770.4,2.65221]
[1717076573583,2.65161,3771.3,3770.5,0.08135056]
[1717076573982,0.55,3771.2,3770.5,0.08135056]
[1717076574186,2.65161,3771.3,3770.5,0.08135056]
[1717076575395,2.65133,3771.7,3770.5,0.08135056]
[1717076575592,0.55,3771.6,3770.6,0.32696104]
[1717076575953,2.65107,3772.1,3770.9,2.65188]
[1717076576356,2.65107,3772.1,3771.1,2.65171]
[1717076576558,2.65078,3772.5,3771.1,2.65171]
[1717076576760,1.29789222,3772.4,3771.2,0.35429117]
[1717076577429,2.65078,3772.5,3771.3,2.70458705]
[1717076577717,3.94867222,3772.5,3771.5,2.6514]
[1717076577851,1.929,3772.9,3771.7,2.6513]
[1717076578056,2.65056,3772.8,3771.7,2.6513]
[1717076578303,2.65056,3772.8,3771.8,1.34865559]
[1717076579608,0.55,3772.7,3771.8,1.34865559]
[1717076580016,2.65056,3772.8,3771.9,2.65115]
[1717076580156,2.65027,3773.2,3771.9,2.65115]
[1717076580501,2.64999,3773.6,3772.4,2.65078]
[1717076580703,2.64999,3773.6,3772.5,0.541078]
[1717076580863,2.64999,3773.6,3772.5,0.62090161]
[1717076581460,1.929,3773.3,3772.5,0.07982361]
[1717076581657,1.929,3773.3,3772.3,7.33]
[1717076581658,1.36416275,3773.2,3772.3,7.33]
[1717076581901,2.65039,3773.1,3772.4,0.07986281]
[1717076582085,2.65053,3772.9,3772.4,0.07986281]
[1717076582291,2.65017,3773.4,3772.4,0.07986281]
[1717076582457,0.55,3773.3,3772.6,2.6718]
[1717076582660,0.55,3773.3,3772.7,0.07974522]
[1717076582961,2.65017,3773.4,3772.7,0.07974522]
[1717076583298,2.64986,3773.8,3772.7,0.07974522]
[1717076583873,2.64986,3773.8,3772.8,2.65054]
[1717076584206,2.64986,3773.8,3772.9,0.61987536]
[1717076584366,2.6348,3775.3,3773.1,2.65029]
[1717076584786,2.6348,3775.3,3773.3,2.65019]
[1717076584787,2.6496,3774.2,3773.3,2.65019]
[1717076585175,2.64931,3774.6,3773.5,2.65004]
[1717076585503,2.64931,3774.6,3773.7,2.64991]
[1717076585701,2.64931,3774.6,3773.8,0.27293026]
[1717076585904,2.64931,3774.6,3773.8,0.35224449]
[1717076587064,2.64931,3774.6,3773.8,3.09244449]
[1717076587270,2.64903,3775.0,3773.8,3.09244449]
[1717076589314,0.00192453,3773.9,3773.8,3.09244449]
[1717076593013,0.00036672,3773.9,3773.8,3.09244449]
[1717076593223,0.00036672,3773.9,3773.8,6.09244449]
[1717076593520,0.00036672,3773.9,3773.8,7.39033671]
[1717076594920,2.64875,3775.4,3774.2,2.64955]
[1717076595084,0.55,3775.3,3774.3,0.264955]
[1717076595284,0.55,3775.3,3774.4,0.07867905]
[1717076596382,2.64875,3775.4,3774.5,2.64935]
[1717076596614,2.64848,3775.8,3774.6,2.7023]
[1717076596815,0.55,3775.7,3774.7,0.54303291]
[1717076597018,2.64862,3775.6,3774.7,0.54303291]
[1717076597224,0.55,3775.5,3774.8,0.07852244]
[1717076598395,2.6416,3776.3,3774.8,0.07852244]
[1717076598396,2.64833,3776.0,3774.8,2.72761244]
[1717076598595,0.55,3775.9,3774.8,2.72761244]
[1717076598823,0.55,3775.9,3774.9,1.63029453]
[1717076599132,0.55,3775.9,3775.0,0.07844415]
[1717076599639,2.64833,3776.0,3775.1,2.6489]
[1717076600130,2.64833,3776.0,3775.2,0.07836587]
[1717076600338,2.64833,3776.0,3775.2,0.51412191]
[1717076601634,0.1247207,3776.7,3775.7,2.64847]
[1717076601635,2.7725507,3776.7,3775.7,2.64847]
[1717076602023,2.7725507,3776.7,3775.8,0.07740814]
[1717076602852,4.7015507,3776.7,3775.8,0.07740814]
[1717076603350,4.7015507,3776.7,3775.8,1.08299595]
[1717076603509,2.64809,3776.4,3775.8,0.07740814]
[1717076603927,2.64809,3776.4,3775.5,7.33]
[1717076604267,2.64809,3776.4,3775.9,0.07736902]
[1717076604564,0.1247207,3776.7,3776.0,0.07732989]
[1717076604912,0.1247207,3776.7,3776.1,2.64823]
[1717076605167,0.1247207,3776.7,3776.3,2.7292]
[1717076605525,0.1247207,3776.7,3776.4,0.0766707]
[1717076605926,0.1247207,3776.7,3776.3,2.7292]
[1717076606121,0.1247207,3776.7,3776.5,0.07663159]
[1717076606355,0.1247207,3776.7,3776.4,0.0766707]
[1717076606543,0.1247207,3776.7,3776.6,5.48677247]
[1717076606869,2.64657,3778.5,3777.3,2.64733]
[1717076607158,1.929,3779.1,3777.5,2.7275]
[1717076607315,1.929,3779.3,3777.5,2.7275]
[1717076607518,2.64628,3778.9,3777.6,2.72317191]
[1717076607715,2.64628,3778.9,3777.7,0.67485641]
[1717076608223,4.57557,3778.5,3777.8,0.07597373]
[1717076608618,4.57557,3778.5,3777.5,2.7275]
[1717076608861,4.57557,3778.5,3777.9,0.07557966]
[1717076608862,2.64682,3778.2,3777.9,0.07557966]
[1717076609031,2.64682,3778.2,3777.0,2.5211]
[1717076609231,2.64704,3777.9,3777.0,2.5211]
[1717076609435,2.64704,3777.9,3777.1,0.0758924]
[1717076609632,2.64715,3777.7,3777.1,0.0758924]
[1717076610034,2.64715,3777.7,3776.5,2.82039895]
[1717076610562,2.64715,3777.7,3776.7,2.6478]
[1717076610922,2.64715,3777.7,3776.8,0.07600738]
[1717076611124,2.64715,3777.7,3776.9,0.27238074]
[1717076611520,2.64715,3777.7,3777.0,0.07605291]
[1717076613560,2.64738,3777.4,3777.1,0.07601381]
[1717076613735,1.929,3778.0,3777.1,0.07601381]
[1717076613937,0.55,3777.9,3776.6,7.33]
[1717076614120,0.55,3777.9,3777.2,0.07597471]
[1717076614321,0.55,3777.9,3776.7,1.01503989]
[1717076614521,0.55,3777.9,3777.3,0.07593562]
[1717076614918,2.64738,3777.4,3776.7,1.01503989]
[1717076615346,2.64738,3777.4,3776.8,0.07613112]
[1717076615747,2.64738,3777.4,3776.6,7.33]
[1717076615952,2.64738,3777.4,3776.9,0.07609202]
[1717076616318,2.64738,3777.4,3776.6,7.33]
[1717076616523,2.64738,3777.4,3776.7,0.07617023]
[1717076618142,2.64738,3777.4,3776.7,0.84754715]
[1717076622744,2.64756,3777.1,3776.7,0.07617023]
[1717076625148,2.64767,3776.9,3776.7,0.07617023]
[1717076625398,2.64767,3776.9,3776.3,12.36]
[1717076625690,2.64767,3776.9,3776.2,7.33]
[1717076625990,2.64767,3776.9,3776.3,0.07600896]
[1717076626377,2.64767,3776.9,3776.3,0.81660986]
[1717076628995,2.64767,3776.9,3776.3,0.07600896]
[1717076629495,2.64743,3777.3,3776.3,0.07600896]
[1717076631152,2.64761,3777.0,3776.3,0.07600896]
[1717076633094,2.64784,3776.7,3776.3,0.07600896]
[1717076635148,2.64795,3776.5,3776.4,0.07613567]
[1717076635359,5.12695,3776.5,3776.4,0.07613567]
[1717076635517,2.64827,3776.1,3775.8,7.33]
[1717076635708,2.64827,3776.1,3775.9,0.07633127]
[1717076635907,2.64771,3776.9,3775.9,2.64835]
[1717076636116,0.57292488,3776.8,3776.1,5.40563]
[1717076636302,5.19488,3777.9,3776.2,0.07639378]
[1717076636303,2.64761,3777.0,3776.2,0.07639378]
[1717076636734,1.929,3777.7,3776.3,2.64807]
[1717076636735,2.64738,3777.4,3776.3,2.64807]
[1717076637244,2.64738,3777.4,3776.5,2.64792]
[1717076637671,2.64738,3777.4,3776.6,0.07623731]
[1717076637972,2.64738,3777.4,3776.7,0.27241573]
[1717076638129,2.64738,3777.4,3776.6,0.07623731]
[1717076638312,2.64738,3777.4,3776.8,0.0761591]
[1717076638655,2.64738,3777.4,3776.3,7.33]
[1717076639284,2.64738,3777.4,3776.4,0.07631554]
[1717076640349,2.64746,3777.2,3776.4,0.07631554]
[1717076640518,2.64746,3777.2,3776.5,0.74063155]
[1717076640720,2.64746,3777.2,3776.6,0.07623731]
[1717076641049,2.64781,3776.7,3776.6,0.07623731]
[1717076641348,3.19781,3776.7,3776.3,7.33]
[1717076641520,1.929,3776.4,3776.3,7.33]
[1717076641704,2.64821,3776.2,3775.5,7.33]
[1717076641905,0.57297495,3776.1,3775.6,2.59588552]
[1717076642110,2.6483,3776.0,3775.2,12.36]
[1717076642820,2.64852,3775.7,3775.1,7.33]
[1717076643822,2.64874,3775.4,3775.1,7.33]
[1717076644017,2.64874,3775.4,3775.2,0.07435678]
[1717076644420,2.64874,3775.4,3774.5,19.69]
[1717076644621,2.64874,3775.4,3775.3,0.07431764]
[1717076644849,3.22183632,3775.4,3774.5,7.33]
[1717076645029,2.64874,3775.4,3774.5,7.33]
[1717076645335,2.64874,3775.4,3774.6,0.07459166]
[1717076645586,2.64896,3775.1,3774.6,0.07459166]
[1717076645748,2.6492,3774.8,3774.6,0.07459166]
[1717076646143,2.64887,3775.2,3774.1,2.6496]
[1717076646337,2.64887,3775.2,3774.2,0.33975269]
[1717076651458,0.51480576,3775.3,3774.2,0.33975269]
[1717076651459,2.64905,3775.0,3774.2,0.33975269]
[1717076653397,2.64921,3774.8,3774.2,0.33975269]
[1717076653599,2.64921,3774.8,3774.2,0.07479269]
[1717076654109,2.64921,3774.8,3774.0,7.33]
[1717076654669,2.64921,3774.8,3774.1,0.07534829]
[1717076658302,2.6494,3774.5,3774.1,0.07534829]
[1717076660326,2.6494,3774.5,3773.6,19.69]
[1717076660529,2.6494,3774.5,3773.7,2.3095103]
[1717076661431,2.64959,3774.2,3773.7,2.3095103]
[1717076661842,2.64959,3774.2,3773.7,0.0755073]
[1717076662134,2.64959,3774.2,3773.3,2.6756]
[1717076662317,2.64959,3774.2,3773.4,2.72574482]
[1717076663892,2.64959,3774.2,3773.4,0.07562482]
[1717076666494,2.04959,3774.2,3773.4,0.07562482]
[1717076666730,2.64917,3774.8,3773.7,2.7973]
[1717076666901,2.64892,3775.2,3774.2,2.64955]
[1717076667088,2.64892,3775.2,3774.3,0.07555288]
[1717076667434,2.64864,3775.6,3774.4,2.6494]
[1717076667636,2.64864,3775.6,3774.5,2.87709529]
[1717076667805,2.64864,3775.6,3774.5,2.95256518]